bitfinex-derivatives/quotes_ETHF0:USTF0_20250107
["timestamp","ask_amount","ask_price","bid_price","bid_amount"]
[1736280946356,0.29449,3397.6,3397.5,1.435]
[1736280946855,3.2078,3397.8,3397.5,1.435]
[1736280947049,0.29448,3397.6,3397.5,1.435]
[1736280947250,0.9369,3397.7,3396.7,0.7364]
[1736280947456,3.2078,3397.4,3396.8,1.435]
[1736280947656,3.2078,3397.4,3397.2,0.29451]
[1736280947850,0.29451,3397.3,3396.8,1.435]
[1736280948264,3.2078,3397.4,3396.7,0.29455]
[1736280948557,3.2078,3397.4,3396.8,1.435]
[1736280949059,0.29453,3397.1,3396.9,0.29454]
[1736280949261,0.29452,3397.3,3397.0,0.29453]
[1736280949554,0.29452,3397.3,3396.8,1.435]
[1736280949555,0.29454,3397.0,3396.8,1.72955]
[1736280949751,3.50234,3397.0,3396.8,1.72955]
[1736280949956,3.2078,3397.0,3396.9,0.29454]
[1736280950356,3.2078,3397.0,3396.8,1.435]
[1736280950558,0.29459,3396.4,3396.2,0.2946]
[1736280950764,3.94416,3397.0,3395.8,1.435]
[1736280950765,4.907,3396.5,3395.8,1.435]
[1736280950958,3.2078,3396.2,3395.8,1.435]
[1736280951160,0.29462,3396.1,3395.9,0.29463]
[1736280951466,3.2078,3396.2,3396.1,0.29461]
[1736280952659,3.2078,3396.9,3396.8,0.29455]
[1736280953360,3.2078,3396.9,3396.7,1.435]
[1736280954057,3.2078,3396.9,3396.8,0.29455]
[1736280956757,3.2078,3396.9,3396.8,3.12636128]
[1736280957163,1.0015,3397.2,3397.1,0.29453]
[1736280957368,0.29453,3397.1,3396.9,0.29454]
[1736280957557,0.29453,3397.1,3396.8,0.29455]
[1736280957760,0.29453,3397.1,3396.9,0.29454]
[1736280958264,3.2078,3397.0,3396.9,0.29454]
[1736280959770,3.2078,3397.0,3396.7,1.435]
[1736280960158,3.2078,3397.0,3396.9,0.29454]
[1736280960861,1.0015,3397.2,3396.8,2.83181128]
[1736280961060,1.0015,3397.2,3397.1,0.29453]
[1736280961861,1.29602,3397.2,3397.1,1.435]
[1736280962170,0.29454,3397.0,3396.8,0.29455]
[1736280962460,0.29455,3396.8,3396.7,1.435]
[1736280962664,0.29456,3396.7,3396.5,0.29457]
[1736280962864,0.29457,3396.6,3396.4,0.29458]
[1736280963060,1.24827,3396.6,3396.4,0.29458]
[1736280963265,3.2078,3396.5,3396.4,0.29458]
[1736280964363,0.9537,3396.6,3396.3,1.435]
[1736280964572,3.2078,3397.0,3396.9,0.29454]
[1736280964770,3.2078,3397.0,3396.9,3.12635128]
[1736280965365,5.9249,3398.1,3397.1,0.73631]
[1736280965366,3.2078,3397.9,3397.1,0.73631]
[1736280965565,3.2078,3397.9,3396.9,2.83181128]
[1736280965566,3.2078,3397.9,3397.8,0.29447]
[1736280969973,3.2078,3397.9,3397.5,0.73623]
[1736280970169,3.50226,3397.9,3397.4,0.73624]
[1736280970369,3.2078,3397.9,3397.8,0.29447]
[1736280971071,4.907,3397.8,3397.0,0.73634]
[1736280971368,3.2078,3397.4,3397.3,0.29451]
[1736280971671,4.907,3397.3,3396.8,1.431]
[1736280971870,3.50234,3396.9,3396.8,1.431]
[1736280972076,0.29458,3396.5,3396.3,0.29459]
[1736280972269,4.52029,3396.4,3396.2,0.2946]
[1736280972464,4.2257,3396.4,3396.3,0.2946]
[1736280973074,4.2257,3396.4,3396.1,1.431]
[1736280973477,4.2257,3396.4,3396.3,0.2946]
[1736280973875,4.2257,3396.4,3396.1,1.431]
[1736280974082,4.2257,3396.4,3396.3,0.2946]
[1736280975682,4.2257,3396.4,3396.1,1.431]
[1736280975881,4.52029,3396.4,3396.2,0.2946]
[1736280976082,4.2257,3396.4,3396.3,0.2946]
[1736280976281,4.2257,3396.4,3396.1,0.29461]
[1736280976282,5.2016,3396.3,3396.1,0.29461]
[1736280976780,0.2946,3396.2,3396.1,0.29461]
[1736280977080,0.2946,3396.2,3395.7,3.61133108]
[1736280977081,0.29464,3395.8,3395.7,0.7795198]
[1736280977275,3.2078,3395.8,3395.6,0.29465]
[1736280977474,3.2078,3395.8,3395.7,0.29465]
[1736280978077,3.50245,3395.8,3395.6,0.29465]
[1736280978277,3.50245,3395.8,3395.3,1.431]
[1736280978278,3.2078,3395.8,3395.3,1.431]
[1736280978482,3.50244,3395.8,3395.6,0.29465]
[1736280978873,3.2078,3395.8,3395.3,1.431]
[1736280979081,0.29465,3395.7,3395.5,0.29466]
[1736280979277,1.25055,3395.7,3395.5,0.29466]
[1736280979480,1.25055,3395.7,3395.4,0.29467]
[1736280979790,0.9783,3395.6,3395.5,0.29466]
[1736280979979,0.9476,3395.6,3395.5,0.29466]
[1736280980183,4.907,3396.0,3395.9,0.29463]
[1736280981185,2.25142032,3396.1,3396.0,0.29462]
[1736280981390,3.2078,3396.4,3396.3,0.2946]
[1736280983783,0.2946,3396.3,3396.2,1.431]
[1736280985092,0.2946,3396.3,3396.2,1.7256]
[1736280985692,0.2946,3396.3,3396.2,1.431]
[1736280985891,0.2946,3396.2,3396.1,0.29461]
[1736280986085,1.2415,3396.2,3396.1,0.29461]
[1736280987892,0.9469,3396.2,3395.8,1.431]
[1736280988084,0.29466,3395.7,3395.6,0.29465]
[1736280988589,3.2078,3395.9,3395.8,0.29464]
[1736280989194,3.2078,3395.9,3395.5,2.16867]
[1736280989195,2.25142032,3396.2,3395.7,0.73661]
[1736280989392,2.54602032,3396.2,3396.1,0.29461]
[1736280989593,0.29462,3396.1,3396.0,0.29461]
[1736280990097,1.19992,3396.1,3396.0,0.29461]
[1736280990389,1.19992,3396.1,3395.5,2.16866]
[1736280990390,0.9053,3396.1,3395.5,1.432]
[1736280990599,0.9053,3396.1,3396.0,0.29462]
[1736280990787,3.2078,3396.2,3396.1,0.29461]
[1736280991595,3.5024,3396.2,3396.1,0.29461]
[1736280992392,3.19902032,3396.5,3396.4,0.29459]
[1736280992593,2.25142032,3396.5,3396.4,0.29459]
[1736280993000,3.38776505,3396.6,3396.4,0.9165]
[1736280993194,4.51702006,3396.8,3396.7,0.29456]
[1736280993392,3.35162006,3396.8,3396.7,3.50236]
[1736280994404,3.35162006,3396.8,3396.7,1.72656]
[1736280994595,0.29453,3397.1,3396.9,0.29454]
[1736280994794,3.2078,3397.2,3396.7,1.432]
[1736280994991,3.2078,3397.2,3397.0,0.29453]
[1736280995195,3.2078,3397.2,3396.9,0.29454]
[1736280995499,0.9346,3397.1,3396.7,1.432]
[1736280995800,3.2078,3397.2,3397.1,0.29453]
[1736280996100,0.9346,3397.7,3396.8,0.73638]
[1736280996300,0.29451,3397.3,3397.1,0.29452]
[1736280996801,0.29454,3397.0,3396.8,0.29455]
[1736280997192,0.29454,3396.9,3396.7,1.72656]
[1736280997396,0.29456,3396.8,3396.6,0.29457]
[1736280997701,0.29457,3396.6,3396.5,1.431]
[1736280998002,3.2078,3396.6,3396.5,1.431]
[1736280998202,3.50237,3396.6,3396.5,1.431]
[1736280998402,3.2078,3396.6,3396.5,1.431]
[1736280999002,3.2078,3396.6,3396.5,1.72558]
[1736281001604,1.9103,3396.9,3396.8,0.29455]
[1736281003205,3.2078,3397.1,3397.0,0.29453]
[1736281004700,0.29455,3396.8,3396.6,0.29456]
[1736281005001,2.65599,3397.3,3396.0,0.77948458]
[1736281005002,3.2078,3396.7,3396.0,0.77948458]
[1736281005200,0.29459,3396.4,3396.2,0.2946]
[1736281005508,0.29461,3396.2,3396.0,2.50210458]
[1736281005808,1.9342,3396.3,3396.2,0.2946]
[1736281006400,5.142,3396.3,3396.2,0.2946]
[1736281007505,5.142,3396.3,3396.1,0.29461]
[1736281007701,5.142,3396.3,3396.2,0.2946]
[1736281009208,4.907,3396.2,3395.2,3.2078]
[1736281009404,3.2078,3395.9,3395.3,1.428]
[1736281009606,3.2078,3395.9,3395.4,1.428]
[1736281009805,0.29464,3395.8,3395.7,0.29464]
[1736281010200,3.2078,3395.9,3395.4,1.428]
[1736281010400,3.2078,3395.9,3395.4,0.29467]
[1736281010601,0.29468,3395.4,3395.3,1.428]
[1736281010804,3.2078,3395.5,3395.2,0.29469]
[1736281011006,1.9502,3395.3,3395.2,0.29469]
[1736281011612,1.9502,3395.3,3395.1,0.29469]
[1736281011804,1.9502,3395.3,3394.9,1.428]
[1736281012006,1.9502,3395.3,3395.2,0.29469]
[1736281012609,1.9502,3395.3,3394.9,1.428]
[1736281012800,1.9502,3395.3,3395.0,2.83181128]
[1736281012801,2.24489,3395.3,3395.0,2.83181128]
[1736281013008,0.2947,3395.1,3394.9,1.72271]
[1736281013303,0.29471,3395.0,3394.3,3.2078]
[1736281013612,0.29471,3395.0,3394.0,4.61419484]
[1736281013613,0.29476,3394.5,3394.4,1.428]
[1736281013813,3.2078,3394.7,3394.4,1.428]
[1736281014111,3.2078,3394.7,3393.8,13.12883048]
[1736281014112,0.29475,3394.6,3394.3,1.72276]
[1736281014313,2.20906,3394.5,3394.3,1.428]
[1736281014510,1.9143,3394.5,3394.3,1.428]
[1736281014709,2.20905,3394.5,3394.3,1.72276]
[1736281014910,2.20905,3394.5,3394.3,1.428]
[1736281015108,2.20905,3394.5,3394.3,1.72277]
[1736281015310,1.9143,3394.5,3394.3,1.72277]
[1736281015513,1.9143,3394.5,3394.3,1.428]
[1736281015815,2.20905,3394.5,3394.3,1.72276]
[1736281016408,4.907,3394.4,3393.8,3.2078]
[1736281016703,0.29479,3394.1,3393.8,1.428]
[1736281016906,0.2948,3394.0,3393.8,1.428]
[1736281017110,1.21079,3394.1,3393.8,1.72281]
[1736281017411,4.907,3394.2,3394.1,0.29479]
[1736281017709,5.20178,3394.2,3393.9,0.2948]
[1736281018017,4.907,3394.2,3394.0,0.29479]
[1736281018208,4.907,3394.2,3394.1,0.29479]
[1736281018613,4.907,3394.2,3393.8,1.428]
[1736281018818,4.907,3394.2,3394.0,0.29479]
[1736281019516,4.907,3394.2,3394.1,0.29479]
[1736281019712,4.907,3394.2,3394.0,0.29479]
[1736281019917,4.907,3394.2,3393.8,1.428]
[1736281020112,0.29478,3394.2,3394.0,0.29479]
[1736281020418,3.50257,3394.3,3394.1,0.29479]
[1736281020617,3.50258,3394.3,3394.1,0.29479]
[1736281020819,0.29479,3394.1,3393.9,0.2948]
[1736281021316,0.29481,3393.9,3393.7,9.13382]
[1736281021526,0.29482,3393.7,3393.5,1.72284]
[1736281021724,3.2078,3393.8,3393.5,1.428]
[1736281022017,2.0154,3393.7,3393.6,0.29483]
[1736281023514,2.31023,3393.7,3393.5,1.72283]
[1736281023713,2.0154,3393.7,3392.7,3.2078]
[1736281023912,3.2078,3393.3,3393.2,0.29486]
[1736281024812,2.0154,3393.7,3393.1,0.73718]
[1736281025012,2.0154,3393.7,3393.6,0.29483]
[1736281025207,3.2078,3393.8,3393.4,2.83181128]
[1736281025519,3.2078,3393.8,3393.7,0.29482]
[1736281025716,3.2078,3393.8,3393.5,1.429]
[1736281026019,5.8845,3393.7,3393.1,0.29487]
[1736281026218,5.8845,3393.7,3393.2,0.29486]
[1736281026219,3.2078,3393.3,3393.2,0.29486]
[1736281026419,0.29487,3393.2,3393.0,1.72388]
[1736281026617,1.9716,3393.2,3393.0,1.429]
[1736281026917,0.29492,3392.6,3392.4,0.29493]
[1736281027110,3.50272,3392.6,3392.4,0.29493]
[1736281027313,3.2078,3392.6,3392.2,1.429]
[1736281027519,3.2078,3392.6,3392.4,0.29493]
[1736281027713,3.2078,3392.6,3392.5,0.29493]
[1736281028520,3.2078,3392.6,3391.9,4.1818972]
[1736281028521,3.2078,3392.6,3392.4,0.29493]
[1736281028822,3.2078,3392.6,3392.5,0.29493]
[1736281029028,4.1879,3392.6,3392.3,1.429]
[1736281029212,4.1879,3392.6,3391.6,0.7375]
[1736281029213,9.0949,3392.6,3391.6,0.7375]
[1736281029521,3.2078,3392.2,3391.0,11.67581128]
[1736281029724,1.9942,3392.1,3391.4,1.425]
[1736281030019,1.9942,3392.1,3391.9,0.29497]
[1736281030220,7.19617,3392.1,3391.6,0.295]
[1736281030411,7.19617,3392.1,3391.8,0.29498]
[1736281030621,6.9012,3392.1,3391.4,1.425]
[1736281030816,6.9012,3392.1,3392.0,0.29497]
[1736281031322,4.907,3392.1,3392.0,0.29497]
[1736281032322,4.907,3392.1,3392.0,1.72097]
[1736281033123,4.907,3392.1,3392.0,0.29497]
[1736281033326,4.907,3392.1,3392.0,1.72097]
[1736281034413,4.907,3392.1,3392.0,0.29497]
[1736281034622,5.8576,3392.1,3391.5,3.2078]
[1736281034822,0.9472,3392.0,3391.9,0.29498]
[1736281035022,3.2078,3392.2,3392.1,0.29496]
[1736281035222,3.2078,3392.6,3392.5,0.29493]
[1736281036120,4.1584,3392.6,3392.5,0.29493]
[1736281037723,4.1584,3392.6,3391.8,2.83181128]
[1736281037923,4.1584,3392.6,3392.5,0.29493]
[1736281038326,0.9506,3392.6,3392.5,0.29493]
[1736281040222,0.29495,3392.2,3392.0,0.29496]
[1736281040428,3.2078,3392.2,3391.8,1.426]
[1736281040629,3.2078,3392.2,3391.4,2.83181128]
[1736281040630,0.29497,3392.0,3391.7,0.29499]
[1736281040831,5.8431,3391.9,3391.3,3.2078]
[1736281041129,9.0938,3391.8,3391.3,1.426]
[1736281041322,9.0938,3391.8,3391.3,1.72102]
[1736281041323,0.29502,3391.5,3391.3,1.72102]
[1736281041723,0.29502,3391.4,3391.3,1.426]
[1736281042033,0.29503,3391.3,3391.1,0.29504]
[1736281042328,0.29503,3391.3,3391.2,0.29504]
[1736281042329,1.0178,3391.3,3391.2,0.29504]
[1736281042722,3.2078,3391.4,3391.3,0.29503]
[1736281044721,4.907,3391.7,3391.6,0.295]
[1736281044930,4.907,3391.7,3391.6,1.721]
[1736281046634,5.1799,3391.8,3391.6,1.426]
[1736281046635,0.979,3391.8,3391.6,1.426]
[1736281046837,0.979,3391.8,3391.7,0.29499]
[1736281047728,0.9361,3391.9,3391.8,0.29499]
[1736281048032,0.9552,3392.4,3392.3,0.29494]
[1736281048232,0.9552,3392.4,3392.3,1.72094]
[1736281050228,0.9552,3392.4,3392.1,3.2078]
[1736281050531,0.9552,3392.4,3391.9,1.426]
[1736281050726,3.2078,3392.2,3392.1,0.29496]
[1736281051228,3.2078,3392.2,3391.6,2.83181128]
[1736281051434,0.29498,3391.9,3391.7,1.72099]
[1736281051643,3.2078,3392.2,3391.7,1.426]
[1736281051836,0.29496,3392.1,3391.9,0.29497]
[1736281052242,3.50276,3392.2,3392.0,0.29497]
[1736281052643,3.50276,3392.2,3392.0,0.29496]
[1736281053240,0.29496,3392.1,3392.0,0.29496]
[1736281053443,0.8887,3392.1,3392.0,0.29496]
[1736281053744,0.8887,3392.1,3392.0,3.12677128]
[1736281054140,4.907,3392.3,3392.2,0.29495]
[1736281054739,0.8887,3392.6,3392.0,3.56922128]
[1736281054936,3.2078,3393.1,3392.5,2.83181128]
[1736281055147,3.2078,3393.1,3393.0,3.12669128]
[1736281055648,3.2078,3393.1,3393.0,1.72088]
[1736281055842,3.50267,3393.1,3393.0,1.426]
[1736281056145,0.73721,3393.0,3392.4,0.29493]
[1736281056449,3.2078,3392.7,3392.5,0.29492]
[1736281056745,0.903,3392.6,3392.5,0.29492]
[1736281058247,0.903,3392.6,3392.3,1.426]
[1736281058449,0.29493,3392.4,3392.3,1.426]
[1736281058652,0.29497,3392.0,3391.6,1.426]
[1736281058845,3.2078,3391.8,3391.7,0.29499]
[1736281059037,3.50279,3391.8,3391.6,0.295]
[1736281059243,3.50279,3391.8,3391.1,3.2078]
[1736281059244,1.8564,3391.7,3391.4,0.29502]
[1736281059540,1.8564,3391.7,3391.6,0.295]
[1736281060149,2.1514,3391.7,3391.5,0.29501]
[1736281060445,1.8564,3391.7,3391.6,0.295]
[1736281061144,2.15139,3391.7,3391.5,0.29501]
[1736281061550,1.8564,3391.7,3391.4,0.29502]
[1736281061852,2.1514,3391.7,3391.4,0.29502]
[1736281062646,1.8564,3391.7,3391.1,1.423]
[1736281062843,1.8564,3391.7,3391.6,0.295]
[1736281063543,1.8564,3391.7,3391.0,2.83181128]
[1736281063741,3.2078,3391.4,3391.3,0.29502]
[1736281066847,1.8564,3391.7,3391.6,0.295]
[1736281067246,3.38894331,3392.1,3392.0,0.29497]
[1736281068451,2.7416,3392.2,3392.1,0.29496]
[1736281071448,2.7416,3392.2,3391.9,1.423]
[1736281071646,3.50277,3392.0,3391.8,0.29498]
[1736281071846,3.2078,3392.0,3391.5,1.423]
[1736281072046,3.2078,3392.0,3391.9,0.29498]
[1736281072247,3.2078,3392.0,3391.3,0.73758]
[1736281072453,3.2078,3392.0,3391.6,0.295]
[1736281072454,0.29499,3391.8,3391.6,0.295]
[1736281073049,4.907,3391.9,3391.4,1.423]
[1736281073243,3.2078,3391.5,3391.4,1.71802]
[1736281074752,3.2078,3391.5,3391.4,1.423]
[1736281074958,3.50281,3391.5,3390.9,0.73766]
[1736281075257,2.7207,3391.4,3391.3,0.29503]
[1736281075651,2.7207,3391.4,3390.8,4.61419484]
[1736281075854,3.01573,3391.4,3391.2,0.29504]
[1736281076058,2.7207,3391.4,3390.8,6.77488484]
[1736281076260,5.20203,3391.3,3391.1,0.29504]
[1736281076461,4.907,3391.3,3391.2,0.29504]
[1736281076650,4.907,3391.3,3390.6,3.2078]
[1736281076856,0.29507,3390.9,3390.7,0.29508]
[1736281077857,0.29506,3391.0,3390.5,4.61419484]
[1736281078049,4.907,3391.3,3390.7,0.29507]
[1736281078250,2.7207,3391.4,3390.7,0.29507]
[1736281078251,3.2078,3390.8,3390.7,0.29507]
[1736281078966,3.2078,3390.8,3390.3,0.73778]
[1736281078967,11.79878331,3391.2,3391.0,0.29505]
[1736281079151,11.50374331,3391.2,3390.3,0.73778]
[1736281079356,0.29506,3391.0,3390.8,0.29507]
[1736281079561,0.29506,3391.0,3390.9,0.29506]
[1736281080164,8.1148,3391.2,3390.4,0.73778]
[1736281080662,8.1148,3391.2,3390.2,6.03961128]
[1736281080850,8.1148,3391.2,3391.1,0.29505]
[1736281081055,8.1148,3391.2,3390.2,6.03961128]
[1736281081056,3.2078,3391.2,3390.2,2.83181128]
[1736281081256,3.2078,3390.3,3389.6,8.55992484]
[1736281081555,3.2078,3390.3,3389.6,5.35212484]
[1736281081556,1.8398,3390.2,3389.6,5.35212484]
[1736281081762,1.8398,3390.2,3390.1,0.29513]
[1736281082060,2.7449,3390.2,3390.1,0.29513]
[1736281083562,2.7449,3390.2,3389.4,7.44600612]
[1736281083762,3.2078,3390.0,3389.6,1.423]
[1736281083962,3.2078,3390.0,3389.3,1.69451423]
[1736281084165,0.29517,3389.7,3389.4,0.29519]
[1736281084359,3.50299,3389.5,3389.3,0.78081423]
[1736281084568,0.8833,3389.4,3389.3,0.78081423]
[1736281084760,1.7754,3389.4,3389.3,0.78081423]
[1736281084961,6.6824,3389.4,3389.3,0.78081423]
[1736281085161,6.97759,3389.4,3389.3,0.78081423]
[1736281086158,6.6824,3389.4,3389.3,0.78081423]
[1736281086364,7.86749,3389.4,3389.3,0.78081423]
[1736281086570,7.86749,3389.4,3389.3,1.07601423]
[1736281086758,7.86749,3389.4,3389.3,0.78081423]
[1736281086960,7.5723,3389.4,3388.4,0.8794]
[1736281087160,3.2078,3388.8,3388.1,3.2078]
[1736281087364,4.907,3388.9,3388.1,0.29531]
[1736281087365,0.2953,3388.3,3388.1,0.29531]
[1736281087567,1.7751,3388.2,3387.7,1.423]
[1736281087768,3.2078,3387.9,3387.6,4.61419484]
[1736281087963,0.29533,3387.8,3387.6,4.61419484]
[1736281088168,8.1148,3387.9,3387.6,4.61419484]
[1736281088368,5.20234,3387.8,3387.6,4.61419484]
[1736281088573,0.29534,3387.7,3387.6,4.61419484]
[1736281088767,4.907,3387.8,3387.6,4.61419484]
[1736281088971,5.20234,3387.8,3387.6,4.90954484]
[1736281089271,5.20234,3387.8,3387.2,1.423]
[1736281089272,0.29535,3387.7,3387.2,1.423]
[1736281089468,3.2078,3387.4,3386.8,3.2078]
[1736281089771,1.809,3387.3,3387.2,0.29538]
[1736281091373,6.716,3387.3,3387.2,0.29538]
[1736281091573,0.29539,3387.2,3386.5,0.73861]
[1736281091768,3.2078,3386.8,3386.7,0.29543]
[1736281092572,3.50323,3386.8,3386.5,0.29544]
[1736281092784,4.907,3386.7,3385.6,0.23526204]
[1736281092972,3.2078,3386.0,3385.9,0.2955]
[1736281093274,3.2078,3386.0,3385.2,0.8798]
[1736281093275,8.1148,3386.0,3385.7,0.29551]
[1736281093464,1.7895,3385.9,3385.7,0.29551]
[1736281093672,5.20251,3385.8,3385.4,0.29554]
[1736281093871,5.20251,3385.8,3384.5,0.73906]
[1736281093872,3.2078,3385.5,3384.6,0.29561]
[1736281094174,3.2078,3384.7,3384.6,0.29561]
[1736281094368,3.2078,3384.7,3384.0,4.85289292]
[1736281094563,8.1148,3385.2,3385.1,0.29557]
[1736281094773,4.907,3385.2,3385.1,0.29557]
[1736281095574,4.907,3385.2,3384.6,3.2078]
[1736281095575,4.907,3385.2,3385.0,0.29558]
[1736281095772,4.907,3385.2,3385.1,0.29557]
[1736281096165,3.2078,3385.6,3385.5,0.29553]
[1736281096370,2.6491,3385.9,3385.4,3.2078]
[1736281096371,1.7895,3385.9,3385.4,3.2078]
[1736281096575,3.2078,3385.8,3385.0,1.421]
[1736281096979,3.2078,3385.8,3385.4,0.29554]
[1736281097177,3.2078,3385.8,3385.0,1.421]
[1736281097476,3.2078,3385.4,3384.9,3.2078]
[1736281097877,3.2078,3385.4,3385.3,0.29555]
[1736281100477,3.2078,3385.4,3384.9,3.2078]
[1736281101083,3.2078,3385.4,3384.9,4.6298]
[1736281101471,3.2078,3385.4,3385.3,0.29555]
[1736281102777,3.2078,3385.4,3385.2,0.29556]
[1736281102980,0.29558,3385.0,3384.1,0.29566]
[1736281103178,8.1148,3384.8,3384.0,12.0688]
[1736281103678,8.1148,3384.8,3384.7,0.2956]
[1736281103679,3.2078,3384.8,3384.7,0.2956]
[1736281103884,3.2078,3384.8,3384.1,2.16115]
[1736281104086,3.2078,3384.8,3384.7,0.2956]
[1736281106679,3.2078,3384.8,3384.2,0.939]
[1736281106978,0.29561,3384.7,3384.3,0.29563]
[1736281107175,8.4104,3384.8,3384.4,0.29562]
[1736281107384,0.2956,3384.7,3384.4,0.29562]
[1736281107584,8.4104,3384.8,3384.0,12.0688]
[1736281107787,3.50343,3384.4,3384.0,0.29566]
[1736281108086,3.2078,3384.4,3384.1,0.29566]
[1736281108290,4.907,3384.3,3383.2,4.82606347]
[1736281108582,4.907,3384.2,3383.9,0.29567]
[1736281108976,4.907,3384.2,3383.4,1.422]
[1736281109177,4.907,3384.2,3384.1,0.29566]
[1736281110388,3.23450868,3385.6,3385.3,0.29555]
[1736281110389,4.907,3385.4,3385.3,0.29555]
[1736281111179,1.8163,3386.0,3385.3,3.2078]
[1736281111382,3.2078,3386.4,3386.3,0.29547]
[1736281111678,0.29549,3386.1,3385.8,1.422]
[1736281111882,1.2085,3386.0,3385.7,0.29551]
[1736281112081,1.2085,3386.0,3385.2,2.16091]
[1736281112082,9.0278,3386.0,3385.2,1.422]
[1736281112281,0.29551,3385.9,3385.6,0.29552]
[1736281112680,9.0278,3386.0,3385.2,1.422]
[1736281112886,0.29551,3385.9,3385.2,1.422]
[1736281113088,9.0278,3386.0,3385.2,1.422]
[1736281113479,0.2955,3385.9,3385.6,0.29552]
[1736281114486,9.0278,3386.0,3385.2,1.422]
[1736281114687,4.1208,3386.0,3385.9,0.2955]
[1736281114885,5.8103,3386.6,3385.7,0.7388]
[1736281115083,0.9033,3386.6,3385.8,0.73878]
[1736281115278,3.2078,3386.3,3385.6,3.2078]
[1736281115487,0.9033,3386.6,3385.1,3.23450868]
[1736281115488,3.2078,3385.9,3385.1,3.2078]
[1736281115786,3.5033,3385.9,3385.6,0.29553]
[1736281116183,0.29551,3385.8,3385.5,0.29553]
[1736281116385,1.22711,3385.8,3385.2,1.422]
[1736281116579,0.29552,3385.7,3385.4,0.29554]
[1736281116785,0.9253,3385.6,3385.5,0.29553]
[1736281120188,3.2078,3385.9,3385.8,0.29551]
[1736281120387,9.9487,3386.4,3386.0,0.29549]
[1736281120590,9.9487,3386.4,3385.4,0.73886]
[1736281120791,9.9487,3386.4,3386.1,0.29548]
[1736281120792,0.29547,3386.3,3386.1,0.29548]
[1736281120988,4.907,3386.2,3385.1,3.2078]
[1736281121189,0.29552,3385.7,3385.4,0.29554]
[1736281121492,0.29556,3385.3,3385.0,0.29557]
[1736281121791,3.2078,3385.1,3384.5,10.287]
[1736281122088,3.2078,3385.1,3384.3,0.73909]
[1736281122089,3.2078,3385.1,3384.9,0.29559]
[1736281122295,3.2078,3385.1,3384.9,0.29558]
[1736281122983,0.29559,3384.9,3384.4,1.419]
[1736281123188,0.29561,3384.6,3384.4,0.29563]
[1736281123394,0.29561,3384.6,3384.3,1.419]
[1736281123395,0.29562,3384.6,3384.3,0.29564]
[1736281123694,7.75743739,3384.6,3383.0,2.85043739]
[1736281123890,0.8788,3384.8,3383.2,1.61826347]
[1736281123891,3.2078,3383.6,3383.2,1.61826347]
[1736281124087,1.15022,3383.5,3383.2,1.61826347]
[1736281124291,0.8545,3383.5,3383.2,1.61826347]
[1736281124590,0.8545,3383.5,3383.3,0.29573]
[1736281124784,0.8545,3383.5,3383.2,1.61826347]
[1736281125191,0.8545,3383.5,3383.3,0.29572]
[1736281125789,0.8545,3383.5,3383.2,1.61826347]
[1736281125990,0.29572,3383.4,3383.2,1.61826347]
[1736281126391,6.05721,3383.5,3383.2,1.91399347]
[1736281126993,0.29572,3383.4,3383.2,1.91399347]
[1736281127293,4.907,3383.2,3382.4,3.2078]
[1736281127484,3.50358,3382.8,3382.6,0.29578]
[1736281127889,3.50358,3382.8,3382.7,0.29578]
[1736281127890,3.2078,3382.8,3382.7,0.29578]
[1736281128193,3.50358,3382.8,3382.2,0.29582]
[1736281128392,3.50358,3382.8,3382.6,0.29579]
[1736281128588,4.907,3382.7,3382.0,3.2078]
[1736281128897,4.907,3382.7,3381.3,3.2375287]
[1736281128898,3.2078,3382.3,3381.5,1.419]
[1736281129096,3.2078,3381.9,3381.1,3.2078]
[1736281129394,3.2078,3381.4,3381.3,0.2959]
[1736281129897,3.2078,3381.4,3380.9,1.419]
[1736281130097,3.2078,3381.4,3381.3,0.2959]
[1736281131187,3.2078,3381.4,3381.2,0.29591]
[1736281131496,3.5037,3381.4,3380.9,0.29594]
[1736281131694,3.2078,3381.4,3380.6,3.2078]
[1736281131895,0.29591,3381.2,3380.7,0.29595]
[1736281132098,3.2078,3381.0,3380.1,3.2078]
[1736281132302,3.2078,3380.6,3379.6,3.2078]
[1736281132597,0.9061,3380.5,3379.6,3.2078]
[1736281132792,0.9061,3380.5,3380.4,0.29598]
[1736281133300,0.9061,3380.5,3380.0,0.29601]
[1736281133498,0.9061,3380.5,3379.6,3.2078]
[1736281133699,0.9061,3380.5,3379.8,0.29603]
[1736281133700,0.29598,3380.4,3379.8,0.29603]
[1736281133898,3.2078,3380.1,3379.4,0.9154]
[1736281134100,3.2078,3380.1,3380.0,0.29602]
[1736281134798,0.9061,3380.5,3380.4,0.29598]
[1736281135400,0.9061,3380.5,3380.3,0.29599]
[1736281135597,0.9061,3380.5,3379.6,3.2078]
[1736281135802,3.2078,3380.3,3379.7,0.29604]
[1736281136103,3.2078,3380.3,3379.1,12.0798]
[1736281136304,3.2078,3380.3,3379.3,0.7402]
[1736281136605,3.2078,3380.3,3380.1,0.29601]
[1736281136798,0.9003,3380.4,3379.7,3.2078]
[1736281136994,0.9061,3380.5,3380.4,0.29598]
[1736281137191,0.9061,3380.5,3380.2,0.29599]
[1736281137398,0.9061,3380.5,3380.4,0.29598]